bitfinex-derivatives/quotes_BTCF0:USTF0_20241010
["timestamp","ask_amount","ask_price","bid_price","bid_amount"]
[1728586198372,0.084465,59270.0,59269.0,0.46006562]
[1728586198869,0.084465,59270.0,59269.0,0.3678]
[1728586199476,0.084465,59270.0,59269.0,0.007]
[1728586200679,0.590625,59270.0,59269.0,0.007]
[1728586200876,0.084465,59270.0,59269.0,0.007]
[1728586202176,0.445265,59270.0,59269.0,0.007]
[1728586202370,0.445265,59270.0,59255.0,0.19]
[1728586202371,1.741425,59270.0,59261.0,0.08423414]
[1728586202677,0.084482,59258.0,59257.0,0.0842345]
[1728586202887,0.084482,59258.0,59253.0,0.0842345]
[1728586202888,0.084485,59256.0,59253.0,0.0842345]
[1728586203178,0.445276,59262.0,59246.0,0.18564914]
[1728586203179,0.08449,59252.0,59247.0,0.0949981]
[1728586203375,0.08449,59252.0,59246.0,0.1193]
[1728586203376,0.08449,59252.0,59251.0,0.084492]
[1728586203679,0.274489,59253.0,59252.0,0.08449]
[1728586203976,0.19,59253.0,59252.0,0.08449]
[1728586204177,0.274489,59253.0,59252.0,0.08449]
[1728586204876,0.084485,59256.0,59254.0,0.084487]
[1728586205075,0.084485,59256.0,59255.0,0.084486]
[1728586206377,0.084485,59256.0,59255.0,0.15181478]
[1728586206673,0.088485,59256.0,59250.0,0.0842345]
[1728586206881,0.084486,59255.0,59254.0,0.06732986]
[1728586207070,0.274486,59255.0,59254.0,0.06732986]
[1728586207270,0.19,59255.0,59252.0,0.06732986]
[1728586207473,0.274489,59253.0,59252.0,0.06732986]
[1728586207676,0.274489,59253.0,59249.0,0.084494]
[1728586207879,0.08449,59252.0,59251.0,0.06732464]
[1728586208081,0.44529,59252.0,59251.0,0.06732464]
[1728586208580,0.44529,59252.0,59251.0,0.15181664]
[1728586209083,0.44529,59252.0,59251.0,0.085492]
[1728586209682,0.63529,59252.0,59251.0,0.001]
[1728586210072,0.63529,59252.0,59251.0,0.002]
[1728586213571,1.93161,59252.0,59251.0,0.002]
[1728586213783,1.74161,59252.0,59251.0,0.002]
[1728586214787,1.14161,59252.0,59251.0,0.002]
[1728586215286,1.74161,59252.0,59251.0,0.002]
[1728586216179,1.14161,59252.0,59251.0,0.002]
[1728586216380,1.74161,59252.0,59251.0,0.002]
[1728586217086,1.14161,59252.0,59251.0,0.002]
[1728586217288,0.63529,59252.0,59251.0,0.002]
[1728586217484,1.14161,59252.0,59251.0,0.002]
[1728586217679,0.63529,59252.0,59251.0,0.002]
[1728586217878,1.74161,59252.0,59251.0,0.002]
[1728586218080,1.14161,59252.0,59251.0,0.002]
[1728586218283,0.63529,59252.0,59251.0,0.002]
[1728586219588,0.63529,59252.0,59251.0,0.001]
[1728586220991,0.084492,59251.0,59247.0,0.05048057]
[1728586221181,0.274496,59248.0,59247.0,0.05048057]
[1728586221381,0.635296,59248.0,59247.0,0.05048057]
[1728586221582,0.084497,59247.0,59246.0,0.05043079]
[1728586221782,0.084499,59246.0,59245.0,0.05043079]
[1728586222784,0.084505,59242.0,59241.0,0.06731149]
[1728586223080,0.084519,59232.0,59229.0,0.0842345]
[1728586223282,0.084519,59232.0,59223.0,0.10115114]
[1728586223283,0.08453,59224.0,59223.0,0.10115114]
[1728586223484,0.3608,59224.0,59223.0,0.12329192]
[1728586223685,0.44533,59224.0,59223.0,0.12329192]
[1728586224585,0.44633,59224.0,59223.0,0.12329192]
[1728586225583,0.45033,59224.0,59223.0,0.20782392]
[1728586225789,0.09093509,59244.0,59223.0,0.20782392]
[1728586225790,0.084527,59227.0,59223.0,0.20782392]
[1728586226090,0.084527,59227.0,59226.0,0.084527]
[1728586226387,0.084527,59227.0,59226.0,0.56861892]
[1728586227487,0.085527,59227.0,59226.0,0.13129192]
[1728586227682,0.090527,59227.0,59226.0,0.13129192]
[1728586227881,0.090527,59227.0,59226.0,0.1302604]
[1728586228188,0.090527,59227.0,59226.0,0.001]
[1728586228189,0.095527,59227.0,59226.0,0.001]
[1728586228688,0.219127,59227.0,59226.0,0.001]
[1728586229083,0.084532,59223.0,59222.0,0.1306]
[1728586229299,0.274532,59223.0,59222.0,0.25296605]
[1728586229793,0.084532,59223.0,59222.0,0.25296605]
[1728586230094,0.274532,59223.0,59222.0,0.25296605]
[1728586230293,0.084532,59223.0,59222.0,0.33749905]
[1728586230785,0.087532,59223.0,59222.0,0.33749905]
[1728586230984,0.090532,59223.0,59222.0,0.43865019]
[1728586231381,0.090532,59223.0,59222.0,0.33749905]
[1728586231789,0.090532,59223.0,59222.0,0.43865019]
[1728586232389,0.090532,59223.0,59222.0,0.3376155]
[1728586238104,0.084528,59226.0,59222.0,0.48367343]
[1728586238286,0.084528,59226.0,59225.0,0.54639489]
[1728586238487,0.084528,59226.0,59225.0,0.5678115]
[1728586239299,0.0422514,59226.0,59225.0,0.5678115]
[1728586239703,0.0452514,59226.0,59225.0,0.5678115]
[1728586240104,0.0512514,59226.0,59225.0,0.5688115]
[1728586240498,0.0512514,59226.0,59225.0,0.4842825]
[1728586241201,0.0482514,59226.0,59225.0,0.1234825]
[1728586241499,0.0532514,59226.0,59225.0,0.1244825]
[1728586241905,0.0532514,59226.0,59225.0,0.002]
[1728586242597,0.084542,59216.0,59215.0,0.1289]
[1728586242907,0.274542,59216.0,59215.0,0.1289]
[1728586243403,0.274542,59216.0,59215.0,0.25188698]
[1728586243788,0.274542,59216.0,59215.0,0.12298698]
[1728586244099,0.274542,59216.0,59215.0,0.12798698]
[1728586244100,0.2853069,59216.0,59215.0,0.12798698]
[1728586244318,0.2853069,59216.0,59215.0,0.13298698]
[1728586244804,0.274542,59216.0,59215.0,0.13298698]
[1728586247900,0.274542,59216.0,59215.0,0.01]
[1728586248396,0.464542,59216.0,59215.0,0.01]
[1728586248603,0.274542,59216.0,59215.0,0.01]
[1728586248802,0.464542,59216.0,59209.0,0.10113829]
[1728586249005,0.445349,59211.0,59210.0,0.1228094]
[1728586249197,0.084552,59209.0,59208.0,0.10113829]
[1728586249392,0.084555,59207.0,59206.0,0.10113829]
[1728586249594,0.084556,59206.0,59205.0,0.10113829]
[1728586249807,0.5508,59206.0,59204.0,0.10113829]
[1728586250108,0.274557,59205.0,59204.0,0.10113829]
[1728586250295,0.274557,59205.0,59195.0,0.50196138]
[1728586250496,0.19,59196.0,59195.0,0.61995606]
[1728586250695,0.27457,59196.0,59195.0,0.64718973]
[1728586250906,0.27457,59196.0,59195.0,0.64574973]
[1728586251094,0.27457,59196.0,59195.0,0.73032173]
[1728586251404,0.08457,59196.0,59195.0,0.73032173]
[1728586251609,0.08557,59196.0,59195.0,0.73332173]
[1728586252398,0.001,59196.0,59195.0,0.73032173]
[1728586253003,0.002,59196.0,59195.0,0.73032173]
[1728586254110,0.08857,59196.0,59195.0,0.51644973]
[1728586254325,0.63937,59196.0,59184.0,0.20258168]
[1728586254519,0.274583,59187.0,59183.0,0.11799468]
[1728586254705,0.274583,59187.0,59186.0,0.14657195]
[1728586255403,0.274583,59187.0,59186.0,0.14957195]
[1728586256311,0.275583,59187.0,59186.0,0.15057195]
[1728586257099,0.275583,59187.0,59186.0,0.00653418]
[1728586257710,0.276583,59187.0,59186.0,0.00753418]
[1728586257910,0.002,59187.0,59186.0,0.23599852]
[1728586258112,0.5508,59197.0,59186.0,0.23599852]
[1728586258113,0.084572,59195.0,59194.0,0.084572]
[1728586258313,0.3608,59197.0,59191.0,0.5508]
[1728586258512,0.00253485,59199.0,59198.0,0.084567]
[1728586258712,0.084555,59208.0,59207.0,0.084555]
[1728586258913,0.274542,59217.0,59207.0,0.3608]
[1728586259112,0.084541,59217.0,59216.0,0.084541]
[1728586259414,0.00253393,59223.0,59220.0,0.084536]
[1728586259602,0.00253393,59223.0,59222.0,0.084533]
[1728586259807,0.08706593,59223.0,59222.0,0.084533]
[1728586260234,0.08706593,59223.0,59220.0,0.084536]
[1728586260235,0.084535,59221.0,59220.0,0.084536]
[1728586260511,0.00253393,59223.0,59222.0,0.084533]
[1728586261316,0.00253393,59223.0,59222.0,0.088533]
[1728586262105,0.00353393,59223.0,59222.0,0.094533]
[1728586262512,0.08806593,59223.0,59222.0,0.094533]
[1728586262910,0.08706593,59223.0,59222.0,0.089533]
[1728586263219,0.00253393,59223.0,59222.0,0.089533]
[1728586263412,0.00253393,59223.0,59222.0,0.088533]
[1728586263613,0.00253393,59223.0,59222.0,0.087533]
[1728586264009,0.00253393,59223.0,59222.0,0.086533]
[1728586264217,0.08706593,59223.0,59222.0,0.086533]
[1728586264518,0.08706593,59223.0,59222.0,0.088533]
[1728586264925,0.08706593,59223.0,59222.0,0.004]
[1728586265213,0.00253393,59223.0,59222.0,0.004]
[1728586265404,0.084523,59230.0,59222.0,0.088533]
[1728586265604,0.084523,59230.0,59229.0,0.084523]
[1728586265805,0.30347086,59242.0,59228.0,0.3608]
[1728586266128,0.084509,59239.0,59238.0,0.084508]
[1728586267220,0.00253321,59242.0,59234.0,0.3608]
[1728586267410,0.084507,59240.0,59239.0,0.3608]
[1728586267916,0.084507,59240.0,59239.0,0.445309]
[1728586268317,0.00253321,59242.0,59241.0,0.084506]
[1728586268621,0.08703821,59242.0,59241.0,0.084506]
[1728586269304,0.00253321,59242.0,59241.0,0.084506]
[1728586269507,0.374487,59255.0,59241.0,0.084506]
[1728586269508,0.084496,59248.0,59247.0,0.084497]
[1728586269713,0.084492,59251.0,59248.0,0.084496]
[1728586270118,0.3608,59256.0,59247.0,0.3608]
[1728586270310,0.084496,59249.0,59247.0,0.3608]
[1728586270512,0.091496,59248.0,59247.0,0.3618]
[1728586270713,0.092496,59248.0,59247.0,0.3688]
[1728586271110,0.092496,59248.0,59247.0,0.3678]
[1728586271111,0.085496,59248.0,59247.0,0.3678]
[1728586271610,0.085496,59248.0,59247.0,0.452297]
[1728586272014,0.3608,59256.0,59252.0,0.08449]
[1728586272213,0.205676,59263.0,59253.0,0.3608]
[1728586272214,0.3608,59263.0,59253.0,0.3608]
[1728586272419,0.3608,59263.0,59262.0,0.445275]
[1728586272420,0.084476,59263.0,59262.0,0.445275]
[1728586273423,0.089476,59263.0,59262.0,0.445275]
[1728586273621,0.007,59263.0,59262.0,0.445275]
[1728586273809,0.002,59263.0,59262.0,0.445275]
[1728586274410,0.086475,59263.0,59262.0,0.448275]
[1728586275418,0.084471,59266.0,59265.0,0.08447]
[1728586276024,0.29,59278.0,59263.0,0.6508]
[1728586276220,0.29,59278.0,59274.0,0.3608]
[1728586276221,0.084458,59275.0,59274.0,0.3608]
[1728586276425,0.084458,59275.0,59274.0,0.445259]
[1728586277424,0.084458,59275.0,59274.0,0.446259]
[1728586277425,0.093458,59275.0,59274.0,0.446259]
[1728586277618,0.093458,59275.0,59274.0,0.3618]
[1728586278021,0.093458,59275.0,59274.0,0.446259]
[1728586279018,0.093458,59275.0,59274.0,0.445259]
[1728586279019,0.084458,59275.0,59274.0,0.445259]
[1728586279219,0.090458,59275.0,59274.0,0.446259]
[1728586279424,0.097458,59275.0,59274.0,0.447259]
[1728586279721,0.013,59275.0,59274.0,0.447259]
[1728586280122,0.013,59275.0,59274.0,0.45772316]
[1728586281021,0.097458,59275.0,59274.0,0.45772316]
[1728586281522,0.013,59275.0,59274.0,0.45772316]
[1728586281931,0.097458,59275.0,59274.0,0.45772316]
[1728586282926,0.097458,59275.0,59274.0,0.3628]
[1728586284725,0.287458,59275.0,59274.0,0.3628]
[1728586288432,0.097458,59275.0,59274.0,0.3628]
[1728586288926,0.00253126,59281.0,59274.0,1.46892]
[1728586289127,0.00253126,59281.0,59280.0,0.44525]
[1728586290235,0.00853126,59281.0,59280.0,0.44625]
[1728586290536,0.00853126,59281.0,59280.0,0.73625]
[1728586290734,0.00653126,59281.0,59280.0,0.73525]
[1728586290922,0.01453126,59281.0,59280.0,0.73525]
[1728586291431,0.1272,59297.0,59290.0,0.084435]
[1728586291432,0.084436,59291.0,59290.0,0.084435]
[1728586291630,0.084435,59291.0,59290.0,0.3608]
[1728586292020,1.480435,59291.0,59290.0,0.3608]
[1728586292619,1.487435,59291.0,59290.0,0.3618]
[1728586292824,0.101435,59291.0,59290.0,0.3628]
[1728586293128,0.101435,59291.0,59290.0,0.447236]
[1728586293332,0.091435,59291.0,59290.0,0.446236]
[1728586293529,0.101435,59291.0,59290.0,0.447236]
[1728586294624,0.096435,59291.0,59290.0,0.446236]
[1728586296035,0.089435,59291.0,59290.0,0.807036]
[1728586296229,0.088435,59291.0,59290.0,0.807036]
[1728586296934,0.084435,59291.0,59290.0,0.807036]
[1728586297436,0.084435,59291.0,59290.0,0.806036]
[1728586297736,0.085435,59291.0,59290.0,0.806036]
[1728586298532,0.085435,59291.0,59290.0,0.7216]
[1728586301328,0.13731143,59291.0,59290.0,0.7216]
[1728586302824,0.13931143,59291.0,59290.0,0.7216]
[1728586303130,0.087435,59291.0,59290.0,0.7216]
[1728586303333,0.13831136,59291.0,59290.0,0.7216]
[1728586303525,0.14031136,59291.0,59290.0,0.7216]
[1728586304041,0.088435,59291.0,59290.0,0.7216]
[1728586305338,0.14031053,59291.0,59290.0,0.806036]
[1728586305530,0.05587553,59291.0,59290.0,1.096036]
[1728586305840,0.004,59291.0,59290.0,1.096036]
[1728586306045,0.05587434,59291.0,59290.0,1.096036]
[1728586306827,0.05387434,59291.0,59290.0,1.096036]
[1728586307040,0.13830934,59291.0,59290.0,1.096036]
[1728586307538,0.084435,59291.0,59290.0,1.096036]
[1728586308135,0.207722,59300.0,59295.0,0.084425]
[1728586308136,0.08443,59296.0,59295.0,0.084425]
[1728586308345,0.13631509,59296.0,59295.0,0.445225]
[1728586308538,0.05188509,59296.0,59295.0,0.445225]
[1728586308733,0.05188428,59296.0,59295.0,0.445225]
[1728586309138,0.13631228,59296.0,59295.0,0.445225]
[1728586309736,0.14031228,59296.0,59295.0,0.3608]
[1728586310541,0.088428,59296.0,59295.0,0.3608]
[1728586311441,0.14030894,59296.0,59295.0,0.3608]
[1728586313041,0.088428,59296.0,59295.0,0.3608]
[1728586313238,0.14030634,59296.0,59295.0,0.3608]
[1728586313437,0.088428,59296.0,59295.0,0.3608]
[1728586314329,0.14030482,59296.0,59295.0,0.3608]
[1728586314744,0.088428,59296.0,59295.0,0.3608]
[1728586314945,0.14030296,59296.0,59295.0,0.3608]
[1728586315536,0.088428,59296.0,59295.0,0.3608]
[1728586319357,0.088428,59296.0,59287.0,0.084439]
[1728586319358,0.084439,59288.0,59287.0,0.084439]
[1728586319646,0.084439,59288.0,59287.0,0.81650813]
[1728586319841,0.084439,59288.0,59287.0,0.806039]
[1728586320034,0.084439,59288.0,59287.0,0.7216]
[1728586320445,0.084439,59288.0,59287.0,0.7276]
[1728586320948,0.001,59288.0,59287.0,1.00804]
[1728586321343,0.001,59288.0,59287.0,1.01852874]
[1728586322043,0.001,59288.0,59287.0,1.01652874]
[1728586322949,0.084433,59292.0,59291.0,0.084435]
[1728586323137,0.084431,59295.0,59294.0,0.084428]
[1728586323341,0.084431,59295.0,59294.0,0.635228]
[1728586324446,0.168853,59298.0,59297.0,0.084426]
[1728586324652,0.084425,59298.0,59297.0,0.084426]
[1728586324851,0.084425,59298.0,59294.0,0.91304]
[1728586325048,0.084429,59295.0,59294.0,0.7216]
[1728586325751,0.087429,59295.0,59294.0,0.7216]
[1728586326349,0.087429,59295.0,59294.0,0.80603]
[1728586326551,0.088429,59295.0,59294.0,0.80603]
[1728586326748,0.086429,59295.0,59294.0,0.80603]
[1728586328056,0.086429,59295.0,59294.0,0.7216]
[1728586328243,0.276429,59295.0,59294.0,0.7216]
[1728586328851,0.084436,59290.0,59289.0,0.3608]
[1728586329058,0.084436,59290.0,59280.0,0.0670291]
[1728586329059,0.084446,59283.0,59280.0,0.0670291]
[1728586329355,0.1282,59282.0,59279.0,0.3608]
[1728586329654,1.33828578,59280.0,59279.0,0.3608]
[1728586329851,0.23220578,59280.0,59279.0,0.3608]
[1728586330152,1.33828578,59280.0,59279.0,0.3608]
[1728586330454,1.48053,59280.0,59279.0,0.3608]
[1728586331756,1.48053,59280.0,59279.0,0.3628]
[1728586332057,1.48153,59280.0,59279.0,0.3768]
[1728586332548,1.48153,59280.0,59279.0,0.3608]
[1728586332749,1.48253,59280.0,59279.0,0.3608]
[1728586333657,0.88153,59280.0,59279.0,0.3608]
[1728586334368,0.88253,59280.0,59279.0,0.3608]
[1728586334558,0.50608,59279.0,59271.0,0.03168551]
[1728586334751,0.084468,59268.0,59264.0,0.08408501]
[1728586334948,0.07005457,59267.0,59263.0,0.08408501]
[1728586335151,0.374475,59263.0,59262.0,0.4447371]
[1728586335356,0.374475,59263.0,59262.0,0.48948576]
[1728586335552,1.480715,59263.0,59262.0,0.57342991]
[1728586335947,1.480715,59263.0,59262.0,0.44474415]
[1728586336153,0.084475,59263.0,59262.0,0.57342819]
[1728586336359,0.374475,59263.0,59262.0,0.57342819]
[1728586336546,0.375475,59263.0,59262.0,0.58642819]
[1728586336756,0.375475,59263.0,59262.0,0.50248404]
[1728586337060,0.291,59263.0,59262.0,0.50248404]
[1728586337450,0.375475,59263.0,59262.0,0.51448404]
[1728586337856,0.38588388,59263.0,59262.0,0.51448404]
[1728586338960,0.085475,59263.0,59262.0,0.51448404]
[1728586339159,0.085475,59263.0,59262.0,0.59896004]
[1728586339572,0.001,59263.0,59262.0,0.69986337]
[1728586339870,0.001,59263.0,59262.0,0.760276]
[1728586340961,0.084452,59279.0,59272.0,0.084461]
[1728586341266,0.084454,59278.0,59277.0,0.3608]
[1728586342160,0.084454,59278.0,59277.0,0.445255]
[1728586342362,0.006,59279.0,59278.0,0.084453]
[1728586342565,0.006,59279.0,59278.0,0.203253]
[1728586342864,0.002,59279.0,59278.0,0.203253]
[1728586343663,0.084449,59281.0,59278.0,0.203253]
[1728586343664,0.084449,59281.0,59278.0,0.1188]
[1728586343967,0.084449,59281.0,59280.0,0.08445]
[1728586344460,0.084436,59290.0,59284.0,0.084445]
[1728586344667,0.084436,59290.0,59287.0,0.3608]
[1728586345166,0.084439,59288.0,59287.0,0.3608]
[1728586346658,0.087439,59288.0,59287.0,0.3608]
[1728586346861,0.087439,59288.0,59287.0,0.44524]
[1728586347061,0.087439,59288.0,59287.0,0.3648]
[1728586347564,1.193439,59288.0,59287.0,0.3648]
[1728586347769,1.554239,59288.0,59271.0,0.37167664]
[1728586348063,0.084462,59272.0,59271.0,0.3608]
[1728586349072,0.085462,59272.0,59271.0,0.3698]
[1728586349874,0.084462,59272.0,59271.0,0.3638]
[1728586350268,0.085462,59272.0,59271.0,0.3718]
[1728586350571,0.085462,59272.0,59271.0,0.011]
[1728586350976,0.084462,59272.0,59271.0,0.3638]
[1728586351158,0.084462,59272.0,59271.0,0.3688]
[1728586351769,0.084462,59272.0,59271.0,0.3638]
[1728586351974,0.084462,59272.0,59271.0,0.3658]
[1728586352163,0.084456,59277.0,59276.0,0.084455]
[1728586352474,0.084456,59277.0,59276.0,0.445255]
[1728586353061,0.084449,59282.0,59281.0,0.084446]
[1728586353269,0.084449,59282.0,59281.0,0.735246]
[1728586353767,0.084449,59282.0,59281.0,0.3608]
[1728586354173,0.090449,59282.0,59281.0,0.3608]
[1728586354776,0.091449,59282.0,59281.0,0.3728]
[1728586354976,0.086449,59282.0,59281.0,0.3828]
[1728586355277,0.085449,59282.0,59281.0,0.3748]
[1728586355577,0.09628166,59282.0,59281.0,0.3748]
[1728586356366,0.09528166,59282.0,59281.0,0.3678]
[1728586357077,0.09528166,59282.0,59281.0,0.3648]
[1728586357476,0.09628166,59282.0,59281.0,0.3718]
[1728586357873,0.09528166,59282.0,59281.0,0.3648]
[1728586358078,0.09628166,59282.0,59281.0,0.3728]
[1728586358379,0.085449,59282.0,59281.0,0.3728]
[1728586358979,0.084449,59282.0,59281.0,0.3658]
[1728586359181,0.085449,59282.0,59281.0,0.3728]
[1728586360475,0.002,59282.0,59281.0,0.748249]
[1728586360782,0.084433,59294.0,59293.0,0.084432]
[1728586363382,0.29,59304.0,59292.0,0.3608]
[1728586363588,0.084421,59301.0,59300.0,0.3608]
[1728586365284,0.092421,59301.0,59300.0,0.3618]
[1728586365877,0.099421,59301.0,59300.0,0.3628]
[1728586373293,0.099421,59301.0,59300.0,0.002]
[1728586373594,0.084432,59293.0,59292.0,0.3608]
[1728586373780,0.274432,59293.0,59292.0,0.3608]
[1728586373989,0.780392,59293.0,59292.0,0.3608]
[1728586374387,0.880392,59293.0,59292.0,0.3608]
[1728586374893,0.881392,59293.0,59292.0,0.3608]
[1728586375195,0.085432,59293.0,59292.0,0.445233]
[1728586375683,0.084432,59293.0,59292.0,0.445233]
[1728586375889,0.086432,59293.0,59292.0,0.445233]
[1728586376091,0.002,59293.0,59292.0,0.735233]
[1728586377100,0.003,59293.0,59292.0,0.735233]
[1728586377596,0.08694981,59303.0,59292.0,1.15676]
[1728586377801,0.001,59293.0,59292.0,0.735233]
[1728586377988,0.001,59293.0,59292.0,1.096033]
[1728586378189,0.001,59293.0,59292.0,1.601993]
[1728586378697,0.084426,59297.0,59296.0,0.084428]
[1728586379196,0.09594881,59303.0,59302.0,0.084419]
[1728586379409,0.00253081,59303.0,59302.0,0.806019]
[1728586379701,0.01253081,59303.0,59302.0,0.806019]
[1728586380086,0.00253081,59303.0,59302.0,0.806019]
[1728586380290,0.01253081,59303.0,59302.0,0.807019]
[1728586380800,0.09694881,59303.0,59302.0,0.81755342]
[1728586380992,0.02053081,59303.0,59302.0,0.81855342]
[1728586381697,0.02053081,59303.0,59302.0,0.45775342]
[1728586381899,0.018,59303.0,59302.0,0.3628]
[1728586382107,0.392418,59303.0,59302.0,0.3628]
[1728586384104,0.102418,59303.0,59302.0,0.447219]
[1728586385703,0.102418,59303.0,59302.0,0.45813715]
[1728586387096,0.018,59303.0,59302.0,0.45813715]
[1728586387697,0.084405,59313.0,59312.0,0.084402]
[1728586387899,0.084405,59313.0,59312.0,0.806002]
[1728586388502,0.0844,59316.0,59314.0,0.084402]
[1728586388697,0.0869311,59315.0,59314.0,0.084402]
[1728586391008,0.0869311,59315.0,59314.0,0.085402]
[1728586391210,0.0869311,59315.0,59314.0,0.086402]
[1728586391413,0.0869311,59315.0,59314.0,0.002]
[1728586391802,0.0869311,59315.0,59314.0,0.001]
[1728586392008,0.0869311,59315.0,59314.0,0.002]
[1728586394597,0.09733989,59315.0,59314.0,0.002]
[1728586396405,0.0869311,59315.0,59314.0,0.002]
[1728586396606,0.0869311,59315.0,59314.0,0.086402]
[1728586400313,0.084401,59315.0,59314.0,0.086402]
[1728586400710,0.084398,59318.0,59317.0,0.084395]
[1728586400911,0.084398,59318.0,59317.0,0.445195]
[1728586401714,0.084394,59320.0,59319.0,0.084392]
[1728586401922,0.084391,59323.0,59322.0,0.084389]
[1728586402118,0.084391,59323.0,59322.0,0.445189]
[1728586402308,0.374391,59323.0,59322.0,0.3608]
[1728586403119,0.374391,59323.0,59322.0,0.3618]
[1728586403615,0.374391,59323.0,59322.0,0.3628]
[1728586404513,0.084391,59323.0,59322.0,0.3628]
[1728586404709,0.374391,59323.0,59322.0,0.3628]
[1728586405213,0.38529502,59323.0,59322.0,0.3628]
[1728586405912,0.084391,59323.0,59322.0,0.447191]
[1728586406706,0.084391,59323.0,59322.0,0.3628]
[1728586406907,0.374391,59323.0,59322.0,0.3628]
[1728586411613,0.374391,59323.0,59322.0,0.002]
[1728586412521,0.274391,59323.0,59322.0,0.002]
[1728586413119,0.084391,59323.0,59322.0,0.002]
[1728586413320,0.084391,59323.0,59322.0,0.447191]
[1728586413623,0.084391,59323.0,59322.0,0.446191]
[1728586413811,0.084391,59323.0,59322.0,0.45695755]
[1728586414414,0.084271,59323.0,59322.0,0.45695755]
[1728586415118,0.19,59330.0,59322.0,0.37256655]
[1728586415323,0.084384,59328.0,59327.0,0.084383]
[1728586415518,0.084384,59328.0,59327.0,0.445183]
[1728586420517,0.08438,59331.0,59330.0,0.084378]
[1728586420829,0.08438,59331.0,59330.0,0.445178]
[1728586423126,0.08438,59331.0,59330.0,0.3608]
[1728586423332,0.37438,59331.0,59330.0,0.3608]
[1728586425536,0.37438,59331.0,59330.0,0.7216]
[1728586426137,0.37438,59331.0,59330.0,0.3608]
[1728586431038,0.08438,59331.0,59330.0,0.3608]
[1728586432435,0.08438,59331.0,59330.0,0.805979]
[1728586432633,0.08438,59331.0,59330.0,0.7216]
[1728586433139,0.08438,59331.0,59330.0,0.3608]
[1728586437533,0.08438,59331.0,59326.0,0.01057546]
[1728586437534,0.084384,59327.0,59326.0,0.01057546]
[1728586437734,0.374384,59327.0,59320.0,0.3608]
[1728586437939,0.084392,59321.0,59320.0,0.445193]
[1728586438541,0.084392,59321.0,59320.0,0.45577816]
[1728586439137,0.084386,59327.0,59326.0,0.084383]
[1728586439452,0.084386,59327.0,59326.0,0.445183]
[1728586439640,0.084386,59327.0,59326.0,0.446183]
[1728586440044,0.084384,59330.0,59329.0,0.084379]
[1728586440846,0.19,59330.0,59328.0,0.3608]
[1728586441034,0.084381,59329.0,59328.0,0.3608]
[1728586442942,0.084371,59336.0,59332.0,0.084375]
[1728586443150,0.084371,59336.0,59335.0,0.3608]
[1728586443344,0.084371,59336.0,59335.0,0.445172]
[1728586444250,0.168739,59339.0,59338.0,0.084367]
[1728586444450,0.084368,59338.0,59337.0,0.3608]
[1728586444748,0.084375,59333.0,59332.0,0.3608]
[1728586445750,0.084375,59333.0,59332.0,0.445176]
[1728586445955,0.084375,59333.0,59332.0,0.453176]
[1728586447043,0.084375,59333.0,59332.0,0.445176]
[1728586447252,0.084375,59333.0,59332.0,0.461176]
[1728586447948,0.084375,59333.0,59332.0,0.454176]
[1728586448146,0.084375,59333.0,59332.0,0.462176]
[1728586451540,0.084375,59333.0,59332.0,0.50635228]
[1728586451746,0.084375,59333.0,59332.0,0.3778]
[1728586452346,0.084375,59333.0,59332.0,0.462176]
[1728586453357,0.084375,59333.0,59332.0,0.54617075]
[1728586453555,0.084375,59333.0,59332.0,0.462176]
[1728586453862,0.084375,59333.0,59332.0,0.3778]
[1728586454860,0.084375,59333.0,59332.0,0.462176]
[1728586455054,0.084375,59333.0,59332.0,0.54617075]
[1728586455250,0.084375,59333.0,59332.0,0.67467257]
[1728586455447,0.084367,59339.0,59332.0,0.59029657]
[1728586455760,0.084367,59339.0,59335.0,0.15152378]
[1728586455761,0.084373,59336.0,59335.0,0.15152378]
[1728586456061,0.084373,59336.0,59335.0,0.08437]
[1728586456259,0.084373,59336.0,59335.0,0.27437]
[1728586456965,0.0674525,59341.0,59335.0,0.47501038]
[1728586457152,0.0674525,59341.0,59340.0,0.3608]
[1728586457353,0.0674525,59341.0,59340.0,0.48934692]
[1728586457548,0.2574525,59341.0,59340.0,0.48934692]
[1728586457862,0.2574525,59341.0,59340.0,0.59004254]
[1728586458052,0.2574525,59341.0,59340.0,0.48934692]
[1728586458369,0.2574525,59341.0,59340.0,0.59004254]
[1728586458548,0.2574525,59341.0,59340.0,0.48934692]
[1728586458749,0.2574525,59341.0,59340.0,0.59004254]
[1728586458948,0.2574525,59341.0,59340.0,0.59104254]
[1728586460851,0.2574525,59341.0,59340.0,0.59091733]
[1728586461052,0.2574525,59341.0,59340.0,0.49034692]
[1728586461252,0.2574525,59341.0,59340.0,0.59091137]
[1728586461562,0.2574525,59341.0,59340.0,0.49034692]
[1728586464964,0.2574525,59341.0,59340.0,0.3618]
[1728586465359,0.0674525,59341.0,59340.0,0.3618]
[1728586467167,0.2574525,59341.0,59340.0,0.3618]
[1728586467962,0.2574525,59341.0,59340.0,0.001]
[1728586474460,0.0674525,59341.0,59340.0,0.085365]
[1728586474665,0.0674525,59341.0,59340.0,0.40391638]
[1728586474868,0.0674525,59341.0,59340.0,0.62798083]
[1728586475168,0.0674525,59341.0,59340.0,0.52741638]
[1728586475671,0.0674525,59341.0,59340.0,0.33741638]
[1728586476365,0.08688753,59344.0,59343.0,0.084361]
[1728586476664,0.08688753,59344.0,59343.0,0.40291238]
[1728586476866,0.084354,59350.0,59349.0,0.084351]
[1728586477173,0.084354,59350.0,59349.0,0.57370238]
[1728586478062,0.084354,59350.0,59349.0,0.67389095]
[1728586478261,0.084354,59350.0,59349.0,0.57370238]
[1728586478469,0.084354,59350.0,59349.0,0.58449451]
[1728586478767,0.084354,59350.0,59349.0,0.50114351]